fUSD/lending_fUSD_20240717
["ID","MTS","AMOUNT","RATE_DAILY","PERIOD"]
[332486329,1721249440240,-152.0,0.00017246,2]
[332486330,1721249440250,-151.299,0.00017246,2]
[332486331,1721249440259,-209.076,0.00017246,2]
[332486332,1721249440269,-154.668,0.00017246,2]
[332486333,1721249440279,-5607.32059616,0.00017259,2]
[332486334,1721249440288,-242.00297124,0.00017259,2]
[332486335,1721249440298,-9748.69872927,0.000174,3]
[332486336,1721249440310,-714.77459963,0.000174,3]
[332486337,1721249440323,-1027.5266711,0.000174,3]
[332486338,1721249440332,-291.46,0.0001744,2]
[332486339,1721249440342,-181.8627138,0.00017655,2]
[332486340,1721249440352,-202.92959654,0.00017687,2]
[332486341,1721249440362,-643.17233874,0.00017687,2]
[332486342,1721249440372,-359.68896077,0.00017688,2]
[332486343,1721249440382,-178.67751301,0.000177,2]
[332486344,1721249440413,-1295.95498699,0.000177,2]
[332486345,1721249440423,-11491.0,0.000177,5]
[332486346,1721249440432,-3135.25336194,0.00017755,2]
[332486347,1721249440442,-461.36,0.0001779,2]
[332486348,1721249440452,-2984.98693968,0.00017799,2]
[332486349,1721249440461,-110173.1819,0.000178,2]
[332486350,1721249440471,-3268.9447,0.000178,2]
[332486351,1721249440481,-16311.8229,0.000178,2]
[332486352,1721249440491,-167.8475733,0.000178,2]
[332486353,1721249440500,-254.58670637,0.00017807,2]
[332486354,1721249440510,-155.0,0.00017854,2]
[332486355,1721249440520,-155.0,0.00017854,2]
[332486356,1721249440530,-500.0,0.00017855,2]
[332486357,1721249440540,-200.0,0.00017855,2]
[332486358,1721249440550,-220.31,0.0001789,2]
[332486359,1721249440563,-322.24176037,0.00017895,2]
[332486360,1721249440573,-159.69359514,0.000179,2]
[332486361,1721249440583,-2129.00201,0.000179,2]
[332486362,1721249440592,-174.87582808,0.000179,2]
[332486363,1721249440603,-2556.54364626,0.000179,2]
[332486364,1721249440613,-167.8475733,0.0001794,2]
[332486365,1721249440622,-179551.298448,0.0001798,2]
[332486366,1721249440633,-1283.0460199,0.00017995,2]
[332486367,1721249440644,-222.2494311,0.00017995,2]
[332486368,1721249440654,-544.76386976,0.00017995,2]
[332486369,1721249440664,-31547.4752772,0.00017996,2]
[332486370,1721249440673,-978.9487308,0.00017996,2]
[332486371,1721249440683,-3929.090584,0.00017996,2]
[332486372,1721249440694,-431.87864264,0.00017999,2]
[332486373,1721249440705,-1010.95517421,0.00017999,2]
[332486374,1721249440718,-300.0,0.00017999,2]
[332486375,1721249440728,-300.0,0.00017999,2]
[332486376,1721249440737,-393.79107315,0.00017999,2]
[332486377,1721249440747,-502.0,0.00018,2]
[332486378,1721249440757,-1196.8886055,0.00018,10]
[332486379,1721249440768,-371.26695724,0.00018,2]
[332486380,1721249440777,-1099931.51741003,0.00018,2]
[332486381,1721249440789,-593329.84603317,0.00018,2]
[332486382,1721249440800,-977580.88581975,0.00018,2]
[332486402,1721249442559,-1500.04768187,0.00018,2]
[332486405,1721249442571,-495.58079881,0.00018,2]
[332486407,1721249442583,-1950.0,0.00018,2]
[332486409,1721249442595,-13040.6402259,0.00018,2]
[332486411,1721249442619,-1449.45668,0.00018,2]
[332486412,1721249442631,-2723.78881899,0.00018,2]
[332486413,1721249442642,-8754.77445779,0.00018,2]
[332486414,1721249442654,-1319.07941141,0.00018,2]
[332486415,1721249442733,-621.29814238,0.00018,2]
[332486416,1721249442788,-104803.32389214,0.00018,2]
[332486417,1721249442844,-4392.56206688,0.00018,2]
[332486441,1721249445545,-76136.90475897,0.00018,2]
[332486442,1721249445717,-7062.3164254,0.00018,2]
[332486443,1721249445774,-320803.97737651,0.00018,2]
[332486444,1721249445785,-1000.0,0.00018,5]
[332486445,1721249445797,-1000.0,0.00018,4]
[332486446,1721249445807,-1360.35442061,0.00018,2]
[332486447,1721249445816,-167.8475733,0.0001808,2]
[332486448,1721249445825,-305.75819386,0.00018115,2]
[332486449,1721249445835,-477.0,0.00018116,2]
[332486450,1721249445845,-492.55741441,0.00018125,2]
[332486451,1721249445854,-150.56184344,0.00018126,2]
[332486452,1721249445864,-218.46557785,0.00018206,2]
[332486453,1721249445874,-154.41671676,0.00018207,2]
[332486454,1721249445883,-155.10759368,0.00018219,2]
[332486456,1721249445893,-167.8475733,0.0001822,2]
[332486458,1721249445902,-531.89861298,0.00018269,2]
[332486459,1721249445911,-291.46,0.0001827,2]
[332486460,1721249445921,-286.51111046,0.00018359,2]
[332486461,1721249445930,-167.8475733,0.0001836,2]
[332486462,1721249445939,-157.39515503,0.00018364,2]
[332486464,1721249445949,-181.86271375,0.0001846,2]
[332486466,1721249445959,-1173.50372169,0.000185,2]
[332486467,1721249445968,-1000.0,0.000185,2]
[332486468,1721249445978,-5000.0,0.000185,2]
[332486469,1721249445987,-167.8475733,0.000185,2]
[332486470,1721249445996,-3135.25336193,0.00018549,2]
[332486471,1721249446007,-274.5,0.00018581,2]
[332486472,1721249446016,-300.0,0.00018586,2]
[332486473,1721249446025,-300.0,0.00018586,2]
[332486474,1721249446035,-26232.8323016,0.00018587,2]
[332486475,1721249446044,-20918.189326,0.00018587,2]
[332486476,1721249446053,-15603.5463503,0.00018587,2]
[332486477,1721249446063,-10288.9033747,0.00018587,2]
[332486478,1721249446072,-814.0302088,0.00018587,2]
[332486479,1721249446081,-649.1116868,0.00018587,2]
[332486480,1721249446090,-484.1931648,0.00018587,2]
[332486481,1721249446100,-319.2746428,0.00018587,2]
[332486482,1721249446110,-3267.1766435,0.00018587,2]
[332486483,1721249446119,-2605.262703,0.00018587,2]
[332486484,1721249446128,-1943.3487625,0.00018587,2]
[332486485,1721249446137,-1281.4348221,0.00018587,2]
[332486486,1721249446147,-1066.8977717,0.00018587,2]
[332486487,1721249446156,-850.7495234,0.00018587,2]
[332486488,1721249446166,-634.6012752,0.00018587,2]
[332486489,1721249446175,-418.453027,0.00018587,2]
[332486490,1721249446184,-222.2494311,0.00018587,2]
[332486491,1721249446193,-222.2494311,0.00018587,2]
[332486492,1721249446203,-222.2494311,0.00018587,2]
[332486493,1721249446212,-222.2494311,0.00018587,2]
[332486494,1721249446222,-151.0,0.00018587,2]
[332486495,1721249446231,-151.0,0.00018587,2]
[332486496,1721249446242,-151.0,0.00018587,2]
[332486497,1721249446252,-151.0,0.00018587,2]
[332486498,1721249446261,-151.0,0.00018587,2]
[332486499,1721249446271,-151.0,0.00018587,2]
[332486500,1721249446280,-151.0,0.00018587,2]
[332486501,1721249446290,-151.0,0.00018587,2]
[332486502,1721249446299,-152.484674,0.00018587,2]
[332486503,1721249446310,-151.0,0.00018587,2]
[332486504,1721249446320,-151.0,0.00018587,2]
[332486505,1721249446330,-151.0,0.00018587,2]
[332486506,1721249446342,-151.0,0.00018587,2]
[332486507,1721249446353,-151.0,0.00018587,2]
[332486508,1721249446363,-151.0,0.00018587,2]
[332486509,1721249446372,-151.0,0.00018587,2]
[332486510,1721249446381,-151.0,0.00018587,2]
[332486511,1721249446391,-151.0,0.00018587,2]
[332486512,1721249446400,-151.0,0.00018587,2]
[332486513,1721249446409,-151.0,0.00018587,2]
[332486514,1721249446419,-151.0,0.00018587,2]
[332486515,1721249446428,-151.0,0.00018587,2]
[332486516,1721249446438,-151.0,0.00018587,2]
[332486517,1721249446449,-151.0,0.00018587,2]
[332486518,1721249446459,-151.0,0.00018587,2]
[332486519,1721249446468,-151.0,0.00018587,2]
[332486520,1721249446477,-151.0,0.00018587,2]
[332486521,1721249446486,-151.0,0.00018587,2]
[332486522,1721249446495,-185.8994514,0.00018587,2]
[332486523,1721249446504,-510.602474,0.00018587,2]
[332486524,1721249446514,-510.602474,0.00018587,2]
[332486525,1721249446523,-151.0,0.00018587,2]
[332486526,1721249446532,-2416.64038508,0.00018598,3]
[332486527,1721249446541,-300.0,0.00018599,2]
[332486528,1721249446550,-421101.86230526,0.000186,7]
[332486529,1721249942822,-463.91045212,0.00025,30]
[332486530,1721249942847,-605.2809317,0.00025,30]
[332486531,1721249942877,-169.42,0.00025067,120]
[332486532,1721249942903,-152.43,0.00025286,120]
[332486533,1721249942929,-712.17702562,0.00026,30]
[332486534,1721249942957,-500.0,0.00026,120]
[332486535,1721249942987,-1000.0,0.00027,60]
[332486536,1721249943014,-1000.0,0.00027,120]
[332486537,1721249943042,-3000.0,0.00027,120]
[332486538,1721249943071,-201.132405,0.000273,120]
[332486539,1721249943095,-200.58956901,0.00027397,60]
[332486540,1721249943122,-1000.0,0.00027397,30]
[332486541,1721249943150,-1719.7,0.000274,30]
[332486542,1721249943175,-1719.7,0.000274,30]
[332486543,1721249943200,-1719.7,0.000274,30]
[332486544,1721249943224,-1719.7,0.000274,30]
[332486545,1721249943252,-1719.7,0.000274,30]
[332486546,1721249943277,-1719.7,0.000274,30]
[332486547,1721249943304,-1719.7,0.000274,30]
[332486548,1721249943329,-1719.7,0.000274,30]
[332486549,1721249943353,-1719.7,0.000274,30]
[332486550,1721249943378,-1719.7,0.000274,30]
[332486551,1721249943402,-1147.0,0.000275,120]
[332486552,1721249943426,-1000.0,0.00027574,30]
[332486553,1721249943451,-1000.0,0.00027751,30]
[332486554,1721249943476,-688.0,0.00027753,120]
[332486555,1721249943502,-1000.0,0.00027928,30]
[332486556,1721249943529,-1000.0,0.00028,120]
[332486557,1721249943556,-588.0,0.00028082,120]
[332486558,1721249943580,-177.83174455,0.000281,120]
[332486559,1721249943605,-1000.0,0.00028104,30]
[332486560,1721249943630,-1000.0,0.00028281,30]
[332486561,1721249943654,-754.65750847,0.00028297,120]
[332486562,1721249943679,-1000.0,0.00028458,30]
[332486563,1721249943990,-1000.0,0.00028635,30]
[332486564,1721249944017,-588.0,0.00028767,120]
[332486565,1721249944045,-1000.0,0.00028811,30]
[332486566,1721249944069,-1000.0,0.00028988,30]
[332486567,1721249944093,-917.76304096,0.00029,120]
[332486568,1721249944118,-2000.0,0.00029,60]
[332486569,1721249944143,-1000.0,0.00029,120]
[332486570,1721249944167,-1000.0,0.00029165,30]
[332486571,1721249944191,-1000.0,0.00029342,30]
[332486572,1721249944218,-1000.0,0.00029518,30]
[332486573,1721249944244,-1000.0,0.00029695,30]
[332486574,1721249944271,-160.89,0.000298,31]
[332486575,1721249944297,-160.89,0.000298,31]
[332486576,1721249944324,-160.89,0.000298,31]
[332486577,1721249944350,-1000.0,0.00029872,30]
[332486578,1721249944375,-2000.0,0.00029874,31]
[332486579,1721249944402,-381.99860587,0.0003,30]
[332486580,1721249944426,-299.0,0.0003,120]
[332486581,1721249944449,-1547.37638018,0.0003,120]
[332486582,1721249944474,-1495.3583236,0.0003,120]
[332486583,1721249944498,-1862.68904721,0.0003,120]
[332486584,1721249944522,-1000.0,0.0003,120]
[332486585,1721249944546,-1150.0,0.0003,120]
[332486586,1721249944570,-10000.0,0.0003,30]
[332486587,1721249944594,-47377.18074022,0.0003,30]
[332486588,1721249944620,-1000.0,0.00030049,30]
[332486589,1721249944644,-1000.0,0.00030225,30]
[332486590,1721249944668,-1000.0,0.00030402,30]
[332486591,1721249944692,-1000.0,0.00030579,30]
[332486592,1721249944716,-598.0,0.0003074,120]
[332486593,1721249944740,-1000.0,0.00030756,30]
[332486594,1721249944766,-160.89,0.000308,31]
[332486595,1721249944791,-160.89,0.000308,31]
[332486596,1721249944815,-160.89,0.000308,31]
[332486597,1721249944839,-1000.0,0.00030932,30]
[332486598,1721249944862,-1000.0,0.00031109,30]
[332486599,1721249944885,-1000.0,0.00031286,30]
[332486600,1721249944908,-1000.0,0.00031463,30]
[332486601,1721249944931,-1000.0,0.00031639,30]
[332486602,1721249944961,-160.89,0.000317,31]
[332486603,1721249944987,-160.89,0.000317,31]
[332486604,1721249945013,-160.89,0.000317,31]
[332486605,1721249945038,-1000.0,0.00031816,30]
[332486606,1721249945063,-1000.0,0.00031993,30]
[332486607,1721249945088,-1000.0,0.00032,120]
[332486608,1721249945112,-1000.0,0.00032,120]
[332486609,1721249945136,-1002.0,0.00032,120]
[332486610,1721249945159,-1000.0,0.0003217,30]
[332486611,1721249945185,-23405.242109,0.000322,30]
[332486612,1721249945210,-4470.390504,0.000322,30]
[332486613,1721249945232,-1000.0,0.00032346,30]
[332486614,1721249945258,-1000.0,0.00032523,30]
[332486615,1721249945283,-160.89,0.000326,31]
[332486616,1721249945308,-160.89,0.000326,31]
[332486617,1721249945333,-160.89,0.000326,31]
[332486618,1721249945356,-1000.0,0.000327,30]
[332486619,1721249945379,-10006.37709208,0.00032875,50]
[332486620,1721249945670,-2000.0,0.00032876,30]
[332486621,1721249945699,-1645.02,0.00032876,32]
[332486622,1721249945726,-1010.76707943,0.00032877,30]
[332486623,1721249945750,-3148.0690841,0.00033,120]
[332486624,1721249945877,-2000.0,0.0003315,30]
[332486625,1721249945904,-790.16,0.00033151,120]
[332486626,1721249946001,-2000.0,0.00033424,30]
[332486627,1721249946030,-160.89,0.000335,31]
[332486628,1721249946054,-160.89,0.000335,31]
[332486629,1721249946078,-160.89,0.000335,31]
[332486630,1721249946157,-2000.0,0.00033698,30]
[332486631,1721249946225,-2000.0,0.00033972,30]
[332486632,1721249946251,-225.05835753,0.00034,30]
[332486633,1721249946274,-700.00000005,0.00034,80]
[332486634,1721249946299,-1000.0,0.00034,120]
[332486635,1721249946322,-995.0,0.00034,30]
[332486636,1721249946382,-2000.0,0.00034246,30]
[332486637,1721249946406,-1645.02,0.00034246,37]
[332486638,1721249946463,-2000.0,0.0003452,30]
[332486639,1721249946758,-2000.0,0.00034794,30]
[332486640,1721249946786,-1815.78227684,0.00035,30]
[332486641,1721249946810,-510.0,0.00035,120]
[332486642,1721249946833,-1557.3900461,0.00035,120]
[332486643,1721249946886,-2000.0,0.00035068,30]
[332486644,1721249946912,-150.0,0.00035221,120]
[332486645,1721249946967,-2000.0,0.00035478,45]
[332486646,1721249946992,-9865.18905764,0.000356,30]
[332486647,1721249947017,-150.0,0.00035609,120]
[332486648,1721249947071,-1645.02,0.00035616,42]
[332486649,1721249947103,-1027.8562671,0.000358,60]
[332486650,1721249947154,-1500.0,0.00036,120]
[332486651,1721249947177,-9071.98307469,0.00036,120]
[332486652,1721249947202,-700.0,0.00036,120]
[332486653,1721249947227,-1000.0,0.00036,120]
[332486654,1721249947257,-2000.0,0.00036,120]
[332486655,1721249947282,-1050.62564063,0.00036,120]
[332486656,1721249947306,-500.0,0.00036,120]
[332486657,1721249947400,-260.5,0.000366,120]
[332486658,1721249947426,-150.0,0.00036688,120]
[332486659,1721249947472,-408.70011888,0.00036886,90]
[332486660,1721249947498,-150.0,0.00036961,120]
[332486661,1721249947543,-1645.02,0.00036986,47]
[332486662,1721249947568,-500.0,0.00037,120]
[332486663,1721249947591,-25200.21269113,0.00037,45]
[332486664,1721249947676,-50000.0,0.00038,48]
[332486665,1721249947699,-431.0,0.00038,120]
[332486666,1721249947723,-700.0,0.00038,120]
[332486667,1721249947750,-1000.0,0.00038,120]
[332486668,1721249947774,-500.0,0.00038,120]
[332486669,1721249947798,-276.77282595,0.00038,120]
[332486670,1721249947825,-1828.75043659,0.00038,120]
[332486671,1721249947867,-150.0,0.0003811,120]
[332486672,1721249947907,-1645.02,0.00038356,52]
[332486673,1721249947932,-150.0,0.00038364,120]
[332486674,1721249947960,-385.56855969,0.000384,33]
[332486675,1721249948001,-638.04430138,0.000387,120]
[332486676,1721249948040,-500.0,0.00039,120]
[332486677,1721249948064,-550.1425102,0.00039,90]
[332486678,1721249948087,-1130.0,0.00039,120]
[332486679,1721249948112,-153254.940001,0.00039,30]
[332486680,1721249948134,-113443.519875,0.00039,40]
[332486681,1721249948157,-512.50619979,0.00039,120]
[332486682,1721249948181,-500.0,0.00039,120]
[332486683,1721249948218,-569.38715109,0.000394,30]
[332486684,1721249948241,-1645.02,0.00039726,57]
[332486685,1721249948265,-206.04054796,0.0003985,30]
[332486686,1721249948288,-1544.49358727,0.0003988,30]
[332486687,1721249948312,-2232.7599939,0.000399,120]
[332486688,1721249948336,-4000.0,0.00039987,60]
[332486689,1721249948359,-250.0,0.00039999,30]
[332486690,1721249948384,-50000.0,0.0004,30]
[332486691,1721249948410,-50000.0,0.0004,40]
[332486692,1721249948435,-1393.71284643,0.0004,30]
[332486693,1721249948459,-151.0,0.0004,120]
[332486694,1721249948482,-151.0,0.0004,120]
[332486695,1721249948509,-1221.55,0.0004,120]
[332486696,1721249948533,-477.12749073,0.0004,30]
[332486697,1721249948556,-2279.27751769,0.0004,120]
[332486698,1721249948579,-2926.56758146,0.0004,30]
[332486699,1721249948602,-1483.29467289,0.0004,30]
[332486700,1721249948629,-458.43697398,0.0004,30]
[332486701,1721249948653,-3015.33044366,0.0004,30]
[332486702,1721249948678,-2334.80831763,0.0004,120]
[332486703,1721249948703,-2877.43538481,0.0004,120]
[332486704,1721249948731,-2808.55777958,0.0004,60]
[332486705,1721249948759,-701.21574664,0.0004,30]
[332486706,1721249948784,-396.4821865,0.0004,30]
[332486707,1721249948811,-254.86008134,0.0004,30]
[332486708,1721249948837,-2066.32549343,0.0004,120]
[332486709,1721249948863,-700.0,0.0004,120]
[332486710,1721249948889,-14949.24991121,0.0004,30]
[332486711,1721249948916,-1000.0,0.0004,120]
[332486712,1721249948944,-378.0,0.0004,120]
[332486713,1721249948970,-500.00708333,0.0004,30]
[332486714,1721249948994,-788.55485395,0.0004,30]
[332486715,1721249949020,-569.91556937,0.0004,120]
[332486716,1721249949045,-33168.3,0.0004,30]
[332486717,1721249949073,-271.0,0.0004,30]
[332486718,1721249949098,-500.0,0.0004,120]
[332486719,1721249949122,-500.0,0.0004,120]
[332486720,1721249949146,-5000.0,0.0004,30]
[332486721,1721249949171,-3551.0,0.0004,120]
[332486722,1721249949196,-1828.75043659,0.0004,120]
[332486723,1721249949221,-1545.17,0.0004,120]
[332486724,1721249949248,-2637.47,0.0004,120]
[332486725,1721249949537,-308.232027,0.0004,60]
[332486726,1721249949562,-3577.3,0.0004,120]
[332486727,1721249949588,-150.0,0.00040381,120]
[332486728,1721249949612,-150.0,0.00040417,120]
[332486729,1721249949636,-500.0,0.000405,120]
[332486730,1721249949661,-151.0,0.00040685,120]
[332486731,1721249949685,-211.42829134,0.0004095,120]
[332486732,1721249949711,-50000.0,0.00041,31]
[332486733,1721249949738,-50000.0,0.00041,41]
[332486734,1721249949765,-500.0,0.00041,120]
[332486735,1721249949788,-500.0,0.00041,120]
[332486736,1721249949812,-500.0,0.00041,120]
[332486737,1721249949837,-912.86237419,0.00041,30]
[332486738,1721249949861,-10800.36506844,0.00041,120]
[332486739,1721249949884,-2510.26460705,0.00041,30]
[332486740,1721249949908,-152.0,0.00041041,31]
[332486741,1721249949932,-200.82639056,0.0004105,120]
[332486742,1721249949965,-733.07792117,0.00041078,120]
[332486743,1721249949988,-2044.92,0.00041095,120]
[332486744,1721249950014,-2044.92,0.00041095,120]
[332486745,1721249950040,-2044.92,0.00041095,120]
[332486746,1721249950064,-2044.92,0.00041095,120]
[332486747,1721249950088,-2044.92,0.00041095,120]
[332486748,1721249950111,-2044.92,0.00041095,120]
[332486749,1721249950134,-2044.92,0.00041095,120]
[332486750,1721249950157,-2044.92,0.00041095,120]
[332486751,1721249950180,-2044.92,0.00041095,120]
[332486752,1721249950203,-2044.92,0.00041095,120]
[332486753,1721249950227,-2044.92,0.00041095,120]
[332486754,1721249950252,-2044.92,0.00041095,120]
[332486755,1721249950275,-2044.92,0.00041095,120]
[332486756,1721249950301,-2044.92,0.00041095,120]
[332486757,1721249950325,-2044.92,0.00041095,120]
[332486758,1721249950349,-2044.92,0.00041095,120]
[332486759,1721249950373,-2044.92,0.00041095,120]
[332486760,1721249950398,-2044.92,0.00041095,120]
[332486761,1721249950424,-2044.92,0.00041095,120]
[332486762,1721249950449,-2044.92,0.00041095,120]
[332486763,1721249950472,-2044.92,0.00041095,120]
[332486764,1721249950496,-2044.92,0.00041095,120]
[332486765,1721249950520,-2044.92,0.00041095,120]
[332486766,1721249950543,-2045.09634238,0.00041095,120]
[332486767,1721249950566,-515.17029221,0.00041095,30]
[332486768,1721249950589,-1645.02,0.00041095,62]
[332486769,1721249950613,-816.0,0.00041096,120]
[332486770,1721249950636,-179.37,0.00041123,30]
[332486771,1721249950659,-1334.0,0.0004118,112]
[332486772,1721249950684,-151.0,0.00041342,120]
[332486773,1721249950707,-151.0,0.0004137,120]
[332486774,1721249950733,-500.0,0.000415,120]
[332486775,1721249950757,-211.42829134,0.0004195,120]
[332486776,1721249950781,-2343.7963676,0.00041998,40]
[332486777,1721249950806,-25000.0,0.00041998,40]
[332486778,1721249950830,-25000.0,0.00041998,40]
[332486779,1721249950854,-25000.0,0.00041998,40]
[332486780,1721249950877,-25000.0,0.00041998,40]
[332486781,1721249950901,-10208.1376429,0.00041998,40]
[332486782,1721249950928,-50000.0,0.00042,32]
[332486783,1721249950958,-50000.0,0.00042,42]
[332486784,1721249950983,-663.94627657,0.00042,120]
[332486785,1721249951008,-1099.45905132,0.00042,120]
[332486786,1721249951034,-688.90645243,0.00042,60]
[332486787,1721249951059,-700.0,0.00042,120]
[332486788,1721249951082,-2029.22,0.00042,48]
[332486789,1721249951105,-1000.0,0.00042,120]
[332486790,1721249951129,-20791.0,0.00042,120]
[332486791,1721249951153,-622.0,0.00042,120]
[332486792,1721249951177,-500.0,0.00042,120]
[332486793,1721249951201,-151.0,0.00042055,120]
[332486794,1721249951225,-1645.02,0.00042465,67]
[332486795,1721249951248,-572.06604647,0.000425,120]
[332486796,1721249951273,-500.0,0.000425,120]
[332486797,1721249951297,-816.0,0.00042501,120]
[332486798,1721249951320,-995.944,0.000426,92]
[332486799,1721249951345,-151.0,0.00042685,120]
[332486800,1721249951370,-151.0,0.0004274,120]
[332486801,1721249951394,-1962.07461266,0.000429,120]
[332486802,1721249951420,-150.0,0.00042949,120]
[332486803,1721249951444,-211.42829134,0.0004295,120]
[332486804,1721249951469,-50000.0,0.00043,33]
[332486805,1721249951494,-50000.0,0.00043,43]
[332486806,1721249951518,-600.0,0.00043,120]
[332486807,1721249951542,-886.88322041,0.00043,30]
[332486808,1721249951565,-171.87653341,0.00043,120]
[332486809,1721249951589,-2267.45289808,0.00043,120]
[332486810,1721249951612,-500.0,0.00043,120]
[332486811,1721249951636,-1000.0,0.00043,120]
[332486812,1721249951660,-1014.43,0.00043,120]
[332486813,1721249951684,-1518.46699201,0.00043,30]
[332486814,1721249951708,-3657.50087317,0.00043,120]
[332486815,1721249951734,-735.0,0.00043,120]
[332486816,1721249951760,-2410.95725,0.00043088,30]
[332486817,1721249951784,-2410.95725,0.00043288,30]
[332486818,1721249951809,-151.0,0.00043425,120]
[332486819,1721249951832,-25000.0,0.00043449,40]
[332486820,1721249951856,-25000.0,0.00043449,40]
[332486821,1721249951880,-20000.0,0.00043449,40]
[332486822,1721249951904,-25000.0,0.00043449,40]
[332486823,1721249951929,-20000.0,0.00043449,40]
[332486824,1721249951958,-25000.0,0.00043449,40]
[332486825,1721249951983,-7587.80200792,0.00043449,40]
[332486826,1721249952008,-20000.0,0.00043449,40]
[332486827,1721249952035,-21098.99676513,0.00043449,40]
[332486828,1721249952059,-16287.98047531,0.00043449,40]
[332486829,1721249952270,-501.71490264,0.00043468,30]
[332486830,1721249952295,-500.0,0.00043468,30]
[332486831,1721249952319,-500.0,0.00043468,30]
[332486832,1721249952343,-500.0,0.00043468,30]
[332486833,1721249952367,-2410.95725,0.00043488,30]
[332486834,1721249952391,-152.0,0.00043494,31]
[332486835,1721249952414,-2721.12204688,0.00043498,52]
[332486836,1721249952437,-500.0,0.000435,120]
[332486837,1721249952461,-268.1916718,0.0004356,30]
[332486838,1721249952483,-150.0,0.0004356,30]
[332486839,1721249952508,-150.15364641,0.0004356,30]
[332486840,1721249952532,-150.0,0.0004356,30]
[332486841,1721249952555,-150.0,0.0004356,30]
[332486842,1721249952578,-271.44059213,0.0004356,30]
[332486843,1721249952601,-150.0,0.0004356,30]
[332486844,1721249952625,-150.0,0.0004356,30]
[332486845,1721249952650,-150.0,0.0004356,30]
[332486846,1721249952674,-150.0,0.0004356,30]
[332486847,1721249952697,-150.0,0.0004356,30]
[332486848,1721249952721,-150.0,0.0004356,30]
[332486849,1721249952744,-161.33859043,0.0004356,30]
[332486850,1721249952771,-150.0,0.0004356,30]
[332486851,1721249952797,-150.0,0.0004356,30]
[332486852,1721249952821,-239.38847482,0.0004356,60]
[332486853,1721249952845,-3185.53024646,0.000436,120]
[332486854,1721249952870,-268.1916718,0.00043609,30]
[332486855,1721249952894,-150.0,0.0004362,30]
[332486856,1721249952918,-150.0,0.00043624,30]
[332486857,1721249952943,-150.0,0.00043642,30]
[332486858,1721249952971,-268.1916718,0.00043658,30]
[332486859,1721249952995,-150.0,0.00043678,30]
[332486860,1721249953021,-150.0,0.0004368,30]
[332486861,1721249953046,-150.0,0.00043687,30]
[332486862,1721249953069,-2410.95725,0.00043688,30]
[332486863,1721249953094,-577.83240935,0.000437,60]
[332486864,1721249953119,-268.1916718,0.00043707,30]
[332486865,1721249953143,-150.0,0.00043724,30]
[332486866,1721249953166,-150.0,0.00043739,30]
[332486867,1721249953191,-500.0,0.00043742,30]
[332486868,1721249953214,-500.0,0.00043742,30]
[332486869,1721249953238,-150.0,0.00043751,30]
[332486870,1721249953264,-268.1916718,0.00043756,30]
[332486871,1721249953287,-150.0,0.00043796,30]
[332486872,1721249953312,-150.0,0.00043799,30]
[332486873,1721249953335,-465.39564077,0.000438,30]
[332486874,1721249953359,-539.26832065,0.000438,111]
[332486875,1721249953384,-268.1916718,0.00043804,30]
[332486876,1721249953408,-150.0,0.00043806,30]
[332486877,1721249953433,-150.0,0.00043815,30]
[332486878,1721249953457,-150.0,0.00043829,30]
[332486879,1721249953480,-501.49614995,0.00043835,30]